[Event "Wuerttemberg Rapid Teams 2024"]
[Site "B?blingen, Germany"]
[Date "2024.04.13"]
[Round "7.1"]
[White "Kabisch, Thilo"]
[Black "Koelle, Tobias"]
[Result "0-1"]
[ECO "A06"]
[WhiteElo "2228"]
[BlackElo "2467"]
[Annotator "RC"]
[PlyCount "98"]
[EventDate "2024.04.13"]
[EventType "team-tourn"]
[SourceTitle "playchess.com"]
[Source "ChessBase"]
[SourceQuality "1"]
[TimeControl "900+5"]

1. Nf3 {[%emt 0:00:02]} d5 {[%emt 0:00:02]} 2. b3 {[%emt 0:00:02]} Bf5 {[%emt 0:00:03]} 3. Bb2 {[%emt 0:00:01]} e6 {[%emt 0:00:01]} 4. e3 {[%emt 0:00:02]} Nf6 {[%emt 0:00:04]} 5. Be2 {[%emt 0:00:03]} h6 {[%emt 0:00:03]} 6. O-O {[%emt 0:00:03]} Be7 {[%emt 0:00:02]} 7. a3 {[%emt 0:00:02]} O-O {[%emt 0:00:02]} 8. d3 {[%emt 0:00:02]} c5 {[%emt 0:00:09]} 9. Nbd2 {[%emt 0:00:02]} Nc6 {[%emt 0:00:01]} 10. c4 {[%emt 0:00:05]} dxc4 {[%emt 0:00:49]} 11. Nxc4 {[%emt 0:00:07]} Qc7 {[%emt 0:00:10]} 12. Rc1 {[%emt 0:00:20]} Rad8 {[%emt 0:00:03]} 13. Qc2 {[%emt 0:00:09]} Rfe8 {[%emt 0:01:38]} 14. Rfd1 {[%emt 0:00:02]} Bh7 {[%emt 0:00:23]} 15. h3 {[%emt 0:00:03]} a6 {[%emt 0:00:04]} 16. Qb1 {[%emt 0:00:04]} Nd5 {[%emt 0:00:20]} 17. Qa1 {[%emt 0:00:07]} Bf6 {[%emt 0:00:02]} 18. Bf1 {[%emt 0:00:41]} Bxb2 {[%emt 0:00:10]} 19. Qxb2 {[%emt 0:00:06]} Qe7 {[%emt 0:00:21]} 20. e4 {[%emt 0:00:24]} Nc7 {[%emt 0:00:20]} 21. Nb6 {[%emt 0:00:20]} Nb5 {[%emt 0:02:28]} 22. Na4 {[%emt 0:00:35]} Ncd4 {[%emt 0:00:03]} 23. Nxd4 {[%emt 0:00:57]} cxd4 {[%emt 0:00:03]} 24. Rc5 {[%emt 0:01:07]} Nc3 {[%emt 0:00:46]} 25. Rc1 {[%emt 0:00:57]} b5 {[%emt 0:00:06]} 26. Nxc3 {[%emt 0:02:30]} Qxc5 {[%emt 0:00:09]} 27. Nd5 {[%emt 0:00:52]} Qa7 {[%emt 0:00:52]} 28. Nf4 {[%emt 0:00:11]} Rc8 {[%emt 0:00:07]} 29. Rd1 {[%emt 0:00:08]} Rc7 {[%emt 0:00:10]} 30. Ne2 {[%emt 0:00:18]} e5 {[%emt 0:00:02]} 31. f4 {[%emt 0:00:02]} Bxe4 {[%emt 0:00:27]} 32. fxe5 {[%emt 0:00:07]} Bg6 {[%emt 0:00:23]} 33. Kh1 {[%emt 0:00:13]} Qc5 {[%emt 0:00:17]} 34. Qxd4 {[%emt 0:02:29]} Qxd4 {[%emt 0:00:02]} 35. Nxd4 {[%emt 0:00:02]} Rxe5 {[%emt 0:00:02]} 36. Nf3 {[%emt 0:00:07]} Rd5 {[%emt 0:00:08]} 37. a4 {[%emt 0:00:02]} Rc3 {[%emt 0:00:08]} 38. axb5 {[%emt 0:00:02]} axb5 {[%emt 0:00:03]} 39. d4 {[%emt 0:00:13]} Rxb3 {[%emt 0:00:13]} 40. Ne5 {[%emt 0:00:02]} Be4 {[%emt 0:00:07]} 41. Nc6 {[%emt 0:00:07]} Rd6 {[%emt 0:00:33]} 42. Ne5 {[%emt 0:00:29]} Rxh3+ {[%emt 0:00:04]} 43. Kg1 {[%emt 0:00:01]} Rb3 {[%emt 0:00:03]} 44. Ra1 {[%emt 0:00:02]} Rxd4 {[%emt 0:00:09]} 45. Ra7 {[%emt 0:00:06]} Bg6 {[%emt 0:00:20]} 46. Rb7 {[%emt 0:00:05]} Rb1 {[%emt 0:00:16]} 47. Kf2 {[%emt 0:00:05]} Rf4+ {[%emt 0:00:08]} 48. Nf3 {[%emt 0:00:03]} Be4 {[%emt 0:00:28]} 49. Bxb5 {[%emt 0:00:05]} Bxb7 {[%emt 0:00:11]} 0-1

[Event "Wuerttemberg Rapid Teams 2024"]
[Site "B?blingen, Germany"]
[Date "2024.04.13"]
[Round "7.2"]
[White "Deuer, Marius"]
[Black "Trachtmann, Mark"]
[Result "1-0"]
[ECO "D72"]
[WhiteElo "2439"]
[BlackElo "2203"]
[Annotator "RC"]
[PlyCount "83"]
[EventDate "2024.04.13"]
[EventType "team-tourn"]
[SourceTitle "playchess.com"]
[Source "ChessBase"]
[SourceQuality "1"]
[TimeControl "900+5"]

1. d4 {[%emt 0:00:01]} Nf6 {[%emt 0:00:01]} 2. c4 {[%emt 0:00:02]} g6 {[%emt 0:00:02]} 3. g3 {[%emt 0:00:02]} Bg7 {[%emt 0:00:04]} 4. Bg2 {[%emt 0:00:01]} d5 {[%emt 0:00:05]} 5. cxd5 {[%emt 0:00:04]} Nxd5 {[%emt 0:00:02]} 6. e4 {[%emt 0:00:01]} Nb6 {[%emt 0:00:14]} 7. Ne2 {[%emt 0:00:03]} c5 {[%emt 0:00:45]} 8. d5 {[%emt 0:00:01]} O-O {[%emt 0:00:08]} 9. O-O {[%emt 0:00:04]} e6 {[%emt 0:00:25]} 10. Nbc3 {[%emt 0:00:02]} Na6 {[%emt 0:01:07]} 11. Nf4 {[%emt 0:00:02]} e5 {[%emt 0:00:20]} 12. Nd3 {[%emt 0:00:01]} c4 {[%emt 0:01:32]} 13. Ne1 {[%emt 0:00:02]} Bd7 {[%emt 0:00:38]} 14. Qe2 {[%emt 0:02:28]} Rc8 {[%emt 0:00:28]} 15. Be3 {[%emt 0:00:33]} Nc5 {[%emt 0:00:22]} 16. Nf3 {[%emt 0:00:02]} Qe7 {[%emt 0:01:12]} 17. Rfd1 {[%emt 0:01:35]} h6 {[%emt 0:00:56]} 18. Nd2 {[%emt 0:01:40]} Nca4 {[%emt 0:00:38]} 19. Nxa4 {[%emt 0:00:47]} Bxa4 {[%emt 0:00:06]} 20. b3 {[%emt 0:00:44]} cxb3 {[%emt 0:01:32]} 21. axb3 {[%emt 0:00:03]} Be8 {[%emt 0:00:53]} 22. Ra2 {[%emt 0:00:03]} a6 23. Rxa6 {[%emt 0:00:05]} Na8 {[%emt 0:00:38]} 24. Ra7 {[%emt 0:00:36]} Qd8 {[%emt 0:00:45]} 25. Rxb7 {[%emt 0:00:26]} Rb8 {[%emt 0:00:05]} 26. Rxb8 {[%emt 0:00:05]} Qxb8 {[%emt 0:00:10]} 27. Ra1 {[%emt 0:00:07]} Bb5 {[%emt 0:00:06]} 28. Bc5 {[%emt 0:01:08]} Rc8 {[%emt 0:00:06]} 29. Qe3 {[%emt 0:00:01]} Nc7 {[%emt 0:00:10]} 30. b4 {[%emt 0:01:03]} Rd8 {[%emt 0:00:28]} 31. Bh3 {[%emt 0:00:45]} Re8 {[%emt 0:00:15]} 32. Bd6 {[%emt 0:00:51]} Bf8 {[%emt 0:00:51]} 33. Bxf8 {[%emt 0:00:22]} Rxf8 {[%emt 0:00:02]} 34. Qxh6 {[%emt 0:00:08]} Ne8 {[%emt 0:00:53]} 35. Qg5 {[%emt 0:01:08]} Qd6 {[%emt 0:00:07]} 36. Nf3 {[%emt 0:00:02]} Qxb4 {[%emt 0:00:39]} 37. Qxe5 {[%emt 0:00:02]} Nd6 {[%emt 0:00:03]} 38. Qd4 {[%emt 0:00:01]} Qb3 {[%emt 0:00:10]} 39. Nd2 {[%emt 0:00:40]} Qc2 {[%emt 0:00:16]} 40. e5 {[%emt 0:00:01]} Nf5 {[%emt 0:00:09]} 41. Bxf5 {[%emt 0:00:02]} Qxf5 {[%emt 0:00:01]} 42. Ne4 {[%emt 0:00:02]} 1-0

[Event "Wuerttemberg Rapid Teams 2024"]
[Site "B?blingen, Germany"]
[Date "2024.04.13"]
[Round "7.3"]
[White "Krockenberger, Martin"]
[Black "Kocharin, Timur"]
[Result "0-1"]
[ECO "E42"]
[WhiteElo "2125"]
[BlackElo "2250"]
[Annotator "RC"]
[PlyCount "50"]
[EventDate "2024.04.13"]
[EventType "team-tourn"]
[SourceTitle "playchess.com"]
[Source "ChessBase"]
[SourceQuality "1"]
[TimeControl "900+5"]

1. d4 {[%emt 0:00:02]} Nf6 {[%emt 0:00:11]} 2. c4 {[%emt 0:00:01]} e6 {[%emt 0:00:01]} 3. Nc3 {[%emt 0:00:01]} Bb4 {[%emt 0:00:05]} 4. e3 {[%emt 0:00:01]} c5 {[%emt 0:00:01]} 5. Nge2 {[%emt 0:00:02]} d5 {[%emt 0:00:01]} 6. a3 {[%emt 0:00:11]} Ba5 {[%emt 0:00:03]} 7. dxc5 {[%emt 0:00:04]} dxc4 {[%emt 0:00:02]} 8. Qxd8+ {[%emt 0:00:04]} Bxd8 {[%emt 0:00:02]} 9. Na4 {[%emt 0:00:21]} Bd7 {[%emt 0:00:53]} 10. Nec3 {[%emt 0:00:08]} b5 {[%emt 0:00:23]} 11. cxb6 {[%emt 0:00:40]} axb6 {[%emt 0:00:06]} 12. Bxc4 {[%emt 0:00:11]} b5 {[%emt 0:00:01]} 13. Nxb5 {[%emt 0:02:08]} Rxa4 {[%emt 0:00:04]} 14. b4 {[%emt 0:00:27]} Be7 {[%emt 0:00:20]} 15. Bb2 {[%emt 0:00:17]} O-O {[%emt 0:00:14]} 16. Nc3 {[%emt 0:00:56]} Ra8 {[%emt 0:00:26]} 17. O-O {[%emt 0:00:09]} Rc8 {[%emt 0:00:03]} 18. Bb3 {[%emt 0:00:14]} Nc6 {[%emt 0:00:08]} 19. Rfd1 {[%emt 0:00:16]} Be8 {[%emt 0:00:13]} 20. f3 {[%emt 0:00:27]} Rab8 {[%emt 0:00:09]} 21. Ba2 {[%emt 0:02:23]} Na5 {[%emt 0:00:15]} 22. Rd4 {[%emt 0:00:28]} Bc5 {[%emt 0:00:42]} 23. Rd3 {[%emt 0:00:09]} Ba7 {[%emt 0:00:08]} 24. Rad1 {[%emt 0:00:42]} Nc4 {[%emt 0:00:07]} 25. Bc1 {[%emt 0:00:03]} Ne5 {[%emt 0:00:10]} 0-1

[Event "Wuerttemberg Rapid Teams 2024"]
[Site "B?blingen, Germany"]
[Date "2024.04.13"]
[Round "7.4"]
[White "Junesch, Gerhard"]
[Black "Eisele, Steffen"]
[Result "1-0"]
[ECO "D46"]
[WhiteElo "2267"]
[BlackElo "2230"]
[Annotator "RC"]
[PlyCount "62"]
[EventDate "2024.04.13"]
[EventType "team-tourn"]
[SourceTitle "playchess.com"]
[Source "ChessBase"]
[SourceQuality "1"]
[TimeControl "900+5"]

1. d4 {[%emt 0:00:02]} d5 {[%emt 0:00:01]} 2. c4 {[%emt 0:00:01]} c6 {[%emt 0:00:01]} 3. Nf3 {[%emt 0:00:01]} Nf6 {[%emt 0:00:01]} 4. Nc3 {[%emt 0:00:01]} e6 {[%emt 0:00:05]} 5. e3 {[%emt 0:00:02]} Nbd7 {[%emt 0:00:04]} 6. Qc2 {[%emt 0:00:02]} Bd6 {[%emt 0:00:05]} 7. Bd3 {[%emt 0:00:01]} dxc4 {[%emt 0:00:30]} 8. Bxc4 {[%emt 0:00:02]} O-O {[%emt 0:00:04]} 9. O-O {[%emt 0:00:03]} a6 {[%emt 0:00:08]} 10. a4 {[%emt 0:00:46]} c5 {[%emt 0:00:02]} 11. Rd1 {[%emt 0:00:39]} Qc7 {[%emt 0:00:13]} 12. Qe2 {[%emt 0:01:10]} b6 {[%emt 0:02:26]} 13. d5 {[%emt 0:00:07]} Ne5 {[%emt 0:01:50]} 14. Nxe5 {[%emt 0:02:43]} Bxe5 {[%emt 0:00:01]} 15. h3 {[%emt 0:01:28]} Bxc3 {[%emt 0:00:51]} 16. bxc3 {[%emt 0:00:05]} exd5 {[%emt 0:00:02]} 17. Bxd5 {[%emt 0:00:05]} Nxd5 {[%emt 0:00:16]} 18. Rxd5 {[%emt 0:00:01]} Be6 {[%emt 0:00:40]} 19. Rg5 {[%emt 0:01:01]} Rfd8 {[%emt 0:02:31]} 20. Ba3 {[%emt 0:02:23]} h6 {[%emt 0:00:59]} 21. Rg3 {[%emt 0:00:07]} c4 {[%emt 0:02:00]} 22. e4 {[%emt 0:00:45]} Qe5 {[%emt 0:01:16]} 23. Bc1 {[%emt 0:00:15]} Kh8 {[%emt 0:00:09]} 24. Rb1 {[%emt 0:00:38]} b5 {[%emt 0:01:44]} 25. axb5 {[%emt 0:00:03]} axb5 {[%emt 0:00:00]} 26. f4 {[%emt 0:00:07]} Qc5+ {[%emt 0:00:34]} 27. Be3 {[%emt 0:00:06]} Qc6 {[%emt 0:00:12]} 28. Bd4 {[%emt 0:00:20]} f6 {[%emt 0:00:10]} 29. f5 {[%emt 0:00:48]} Bf7 {[%emt 0:00:09]} 30. Qg4 {[%emt 0:00:19]} Rg8 {[%emt 0:00:08]} 31. e5 {[%emt 0:01:05]} Qd6 {[%emt 0:00:11]} 1-0

[Event "Wuerttemberg Rapid Teams 2024"]
[Site "B?blingen, Germany"]
[Date "2024.04.13"]
[Round "7.6"]
[White "Kaufmann, Thorsten"]
[Black "Weiss, Oliver"]
[Result "0-1"]
[ECO "C01"]
[WhiteElo "2057"]
[BlackElo "2220"]
[Annotator "RC"]
[PlyCount "70"]
[EventDate "2024.04.13"]
[EventType "team-tourn"]
[SourceTitle "playchess.com"]
[Source "ChessBase"]
[SourceQuality "1"]
[TimeControl "900+5"]

1. e4 {[%emt 0:00:01]} e6 {[%emt 0:00:01]} 2. d4 {[%emt 0:00:04]} d5 {[%emt 0:00:02]} 3. exd5 {[%emt 0:00:06]} exd5 {[%emt 0:00:03]} 4. Bf4 {[%emt 0:00:03]} Nc6 {[%emt 0:00:28]} 5. c3 {[%emt 0:00:02]} Bd6 {[%emt 0:00:10]} 6. Bg3 {[%emt 0:00:05]} Nf6 {[%emt 0:00:17]} 7. Nf3 {[%emt 0:00:05]} O-O {[%emt 0:00:08]} 8. Be2 {[%emt 0:00:02]} Ne7 {[%emt 0:00:18]} 9. O-O {[%emt 0:00:04]} c6 {[%emt 0:00:13]} 10. Nbd2 {[%emt 0:00:06]} Re8 {[%emt 0:00:10]} 11. Re1 {[%emt 0:00:04]} Nf5 {[%emt 0:00:04]} 12. Bxd6 {[%emt 0:00:13]} Nxd6 {[%emt 0:00:05]} 13. Bd3 {[%emt 0:00:03]} Bg4 {[%emt 0:00:09]} 14. Qc2 {[%emt 0:00:05]} Bh5 {[%emt 0:00:19]} 15. Rxe8+ {[%emt 0:00:02]} Qxe8 {[%emt 0:00:05]} 16. Re1 {[%emt 0:00:03]} Qf8 {[%emt 0:00:14]} 17. Kf1 {[%emt 0:00:24]} Re8 {[%emt 0:00:07]} 18. Rxe8 {[%emt 0:00:03]} Qxe8 {[%emt 0:00:01]} 19. h3 {[%emt 0:01:10]} Nfe4 {[%emt 0:01:00]} 20. g4 {[%emt 0:00:12]} Bg6 {[%emt 0:00:08]} 21. Ne5 {[%emt 0:00:03]} Ng5 {[%emt 0:00:50]} 22. h4 {[%emt 0:00:23]} Ne6 {[%emt 0:00:08]} 23. h5 {[%emt 0:00:14]} Bxd3+ {[%emt 0:00:06]} 24. Qxd3 {[%emt 0:00:02]} h6 {[%emt 0:01:13]} 25. Qe3 {[%emt 0:00:08]} Qd8 {[%emt 0:00:59]} 26. Kg2 {[%emt 0:01:12]} Qf6 {[%emt 0:00:41]} 27. Kg3 {[%emt 0:00:15]} Ng5 {[%emt 0:01:49]} 28. f3 {[%emt 0:00:06]} Qe6 {[%emt 0:00:22]} 29. Nf1 {[%emt 0:00:23]} f5 {[%emt 0:00:46]} 30. Ng6 {[%emt 0:00:15]} Qf7 {[%emt 0:01:02]} 31. Ne5 {[%emt 0:01:29]} Qc7 {[%emt 0:00:15]} 32. Qf4 {[%emt 0:00:13]} Ne6 {[%emt 0:00:59]} 33. Qd2 {[%emt 0:00:14]} fxg4 {[%emt 0:00:23]} 34. Kxg4 {[%emt 0:00:10]} Ng5 {[%emt 0:00:34]} 35. Kg3 {[%emt 0:01:32]} Nde4+ {[%emt 0:00:18]} 0-1

[Event "Wuerttemberg Rapid Teams 2024"]
[Site "B?blingen, Germany"]
[Date "2024.04.13"]
[Round "7.7"]
[White "Albrecht, Neil"]
[Black "Wunder, Niklas"]
[Result "1-0"]
[ECO "B28"]
[WhiteElo "1950"]
[BlackElo "2071"]
[Annotator "NA RC"]
[PlyCount "49"]
[EventDate "2024.04.13"]
[EventType "team-tourn"]
[SourceTitle "playchess.com"]
[Source "ChessBase"]
[SourceQuality "1"]
[TimeControl "900+5"]

1. e4 {[%emt 0:00:01]} c5 {[%emt 0:00:01]} 2. Nf3 {[%emt 0:00:02]} a6 {[%emt 0:00:02]} 3. c3 {[%emt 0:00:19]} d5 {[%emt 0:00:01]} 4. exd5 {[%emt 0:00:01]} Qxd5 {[%emt 0:00:02]} 5. d4 {[%emt 0:00:04]} e6 {[%emt 0:00:01]} 6. Be3 {[%emt 0:00:26]} Nd7 {[%emt 0:00:02]} 7. Bd3 {[%emt 0:00:24]} Ngf6 {[%emt 0:00:14]} 8. O-O {[%emt 0:00:11]} b6 {[%emt 0:00:22]} 9. Re1 {[%emt 0:01:40]} Be7 {[%emt 0:00:30]} 10. c4 {[%emt 0:00:53]} Qc6 {[%emt 0:00:06]} 11. Nc3 {[%emt 0:00:04]} cxd4 {[%emt 0:00:16]} 12. Nxd4 {[%emt 0:00:20]} Qc7 {[%emt 0:00:10]} 13. Nd5 {[%emt 0:01:58]} Nxd5 {[%emt 0:01:24]} 14. cxd5 {[%emt 0:00:07]} Nc5 {[%emt 0:00:20]} 15. Rc1 {[%emt 0:01:08]} Qd6 {[%emt 0:00:41]} 16. dxe6 {[%emt 0:00:22]} fxe6 {[%emt 0:01:23]} 17. Qh5+ {[%emt 0:01:28]} g6 {[%emt 0:00:12]} 18. Bxg6+ {[%emt 0:00:12]} Kd7 {[%emt 0:00:36]} 19. Red1 {[%emt 0:00:31]} hxg6 {[%emt 0:00:26]} 20. Qxh8 {[%emt 0:00:03]} Bb7 {[%emt 0:00:02]} 21. Qg7 {[%emt 0:00:24]} Bd5 {[%emt 0:00:05]} 22. Nf3 {[%emt 0:00:47]} a5 {[%emt 0:00:38]} 23. Ne5+ {[%emt 0:00:39]} Kc7 {[%emt 0:00:09]} 24. Bf4 {[%emt 0:00:21]} Kb7 {[%emt 0:00:26]} 25. Nxg6 {[%emt 0:00:18]} 1-0

[Event "Wuerttemberg Rapid Teams 2024"]
[Site "B?blingen, Germany"]
[Date "2024.04.13"]
[Round "7.9"]
[White "Braeuning, Rudolf Wilhelm"]
[Black "Oberst, Thomas"]
[Result "0-1"]
[ECO "A20"]
[WhiteElo "2194"]
[BlackElo "2227"]
[Annotator "RC"]
[PlyCount "101"]
[EventDate "2024.04.13"]
[EventType "team-tourn"]
[SourceTitle "playchess.com"]
[Source "ChessBase"]
[SourceQuality "1"]
[TimeControl "900+5"]

1. c4 {[%emt 0:00:02]} e5 {[%emt 0:00:04]} 2. a3 {[%emt 0:00:05]} c6 {[%emt 0:00:04]} 3. Nf3 {[%emt 0:00:09]} e4 {[%emt 0:00:03]} 4. Nd4 {[%emt 0:00:02]} d5 {[%emt 0:00:12]} 5. cxd5 {[%emt 0:00:02]} Nf6 {[%emt 0:00:02]} 6. e3 {[%emt 0:00:04]} cxd5 {[%emt 0:00:18]} 7. d3 {[%emt 0:00:08]} Bc5 {[%emt 0:00:23]} 8. Nc3 {[%emt 0:00:14]} O-O {[%emt 0:00:05]} 9. Be2 {[%emt 0:00:03]} Re8 {[%emt 0:00:21]} 10. O-O {[%emt 0:00:05]} exd3 {[%emt 0:01:50]} 11. Qxd3 {[%emt 0:00:10]} Nc6 {[%emt 0:00:07]} 12. Nxc6 {[%emt 0:00:50]} bxc6 {[%emt 0:00:02]} 13. Bf3 {[%emt 0:00:08]} Ng4 {[%emt 0:00:10]} 14. Qc2 {[%emt 0:01:00]} Bd6 {[%emt 0:04:11]} 15. h3 {[%emt 0:00:12]} Nh2 {[%emt 0:00:26]} 16. Be2 {[%emt 0:02:16]} Nxf1 {[%emt 0:01:07]} 17. Bxf1 {[%emt 0:00:01]} Qf6 {[%emt 0:01:02]} 18. Bd2 {[%emt 0:00:25]} Bf5 {[%emt 0:00:53]} 19. Qa4 {[%emt 0:00:19]} Be5 {[%emt 0:00:12]} 20. f4 {[%emt 0:00:36]} Bc7 {[%emt 0:00:15]} 21. Re1 {[%emt 0:01:14]} Bb6 {[%emt 0:00:09]} 22. Kh2 {[%emt 0:00:01]} Rad8 {[%emt 0:00:11]} 23. g4 {[%emt 0:01:14]} Be4 {[%emt 0:00:12]} 24. Nxe4 {[%emt 0:00:08]} Rxe4 {[%emt 0:00:11]} 25. Qc2 {[%emt 0:00:19]} Qh4 {[%emt 0:00:38]} 26. Bg2 {[%emt 0:00:55]} Re6 {[%emt 0:00:23]} 27. Qd3 {[%emt 0:01:36]} Rde8 {[%emt 0:00:13]} 28. b4 {[%emt 0:00:03]} Bc7 {[%emt 0:00:17]} 29. Rf1 {[%emt 0:00:21]} h5 {[%emt 0:00:14]} 30. gxh5 {[%emt 0:00:16]} Qxh5 {[%emt 0:00:31]} 31. b5 {[%emt 0:00:04]} cxb5 {[%emt 0:00:10]} 32. Qxb5 {[%emt 0:00:01]} Rd8 {[%emt 0:01:12]} 33. Rc1 {[%emt 0:00:54]} Bb6 {[%emt 0:00:18]} 34. Qd3 {[%emt 0:00:01]} Rg6 {[%emt 0:00:24]} 35. a4 {[%emt 0:00:54]} Qh4 {[%emt 0:00:08]} 36. Be1 {[%emt 0:00:01]} Qe7 {[%emt 0:00:21]} 37. Bd2 {[%emt 0:00:10]} Re6 {[%emt 0:00:13]} 38. Re1 {[%emt 0:00:24]} Qc5 {[%emt 0:00:06]} 39. Rc1 {[%emt 0:01:01]} Qd6 {[%emt 0:00:05]} 40. a5 {[%emt 0:00:07]} Bc7 {[%emt 0:00:11]} 41. Qc2 {[%emt 0:00:19]} Bb8 {[%emt 0:00:03]} 42. Qb3 {[%emt 0:00:13]} d4 {[%emt 0:00:07]} 43. e4 {[%emt 0:00:17]} Qe7 {[%emt 0:00:09]} 44. e5 {[%emt 0:00:04]} Qh4 {[%emt 0:00:11]} 45. Rf1 {[%emt 0:00:17]} Rg6 {[%emt 0:00:09]} 46. Be1 {[%emt 0:00:14]} Qe7 {[%emt 0:00:05]} 47. Bd5 {[%emt 0:00:09]} Rh6 {[%emt 0:00:09]} 48. Bb4 {[%emt 0:00:21]} Qd7 {[%emt 0:00:03]} 49. Bc4 {[%emt 0:00:41]} d3 50. Rf3 {[%emt 0:00:02]} d2 {[%emt 0:00:02]} 51. Rd3 0-1

[Event "Wuerttemberg Rapid Teams 2024"]
[Site "B?blingen, Germany"]
[Date "2024.04.13"]
[Round "7.10"]
[White "Hartmann, Martin"]
[Black "Namyslo, Holger"]
[Result "0-1"]
[ECO "C02"]
[WhiteElo "2158"]
[BlackElo "2125"]
[Annotator "RC"]
[PlyCount "106"]
[EventDate "2024.04.13"]
[EventType "team-tourn"]
[SourceTitle "playchess.com"]
[Source "ChessBase"]
[SourceQuality "1"]
[TimeControl "900+5"]

1. e4 {[%emt 0:00:03]} e6 {[%emt 0:00:04]} 2. d4 {[%emt 0:00:02]} d5 {[%emt 0:00:00]} 3. e5 {[%emt 0:00:01]} c5 {[%emt 0:00:01]} 4. c3 {[%emt 0:00:01]} Nc6 {[%emt 0:00:01]} 5. Nf3 {[%emt 0:00:01]} Nh6 {[%emt 0:00:01]} 6. Bxh6 {[%emt 0:00:14]} gxh6 {[%emt 0:00:01]} 7. Bd3 {[%emt 0:00:01]} f6 {[%emt 0:00:02]} 8. O-O {[%emt 0:00:06]} Bg7 {[%emt 0:00:04]} 9. Re1 {[%emt 0:00:09]} O-O {[%emt 0:00:37]} 10. Nbd2 {[%emt 0:00:04]} Kh8 {[%emt 0:00:33]} 11. Nf1 {[%emt 0:00:09]} Bd7 {[%emt 0:00:53]} 12. Ng3 {[%emt 0:00:07]} Be8 {[%emt 0:00:05]} 13. exf6 {[%emt 0:00:30]} Qxf6 {[%emt 0:00:23]} 14. Qe2 {[%emt 0:00:15]} cxd4 {[%emt 0:00:13]} 15. Qxe6 {[%emt 0:00:36]} Qxe6 {[%emt 0:00:41]} 16. Rxe6 {[%emt 0:00:02]} dxc3 {[%emt 0:00:01]} 17. bxc3 {[%emt 0:00:03]} Bxc3 {[%emt 0:00:17]} 18. Rc1 {[%emt 0:01:02]} Bf6 {[%emt 0:00:24]} 19. Rb1 {[%emt 0:01:11]} b6 {[%emt 0:01:45]} 20. Rc1 {[%emt 0:00:06]} Nb4 {[%emt 0:01:19]} 21. Bb1 {[%emt 0:00:13]} Bg6 {[%emt 0:00:05]} 22. a3 {[%emt 0:00:28]} Bb2 {[%emt 0:01:30]} 23. Rd1 {[%emt 0:03:45]} Bxa3 {[%emt 0:00:48]} 24. Bxg6 {[%emt 0:00:22]} hxg6 {[%emt 0:00:01]} 25. Rxg6 {[%emt 0:01:24]} Kh7 {[%emt 0:00:04]} 26. Nh4 {[%emt 0:00:02]} Rf4 {[%emt 0:00:56]} 27. Ngf5 {[%emt 0:01:18]} Rxf5 {[%emt 0:00:07]} 28. Rxh6+ {[%emt 0:00:03]} Kxh6 {[%emt 0:00:03]} 29. Nxf5+ {[%emt 0:00:01]} Kg5 {[%emt 0:00:09]} 30. Nd4 {[%emt 0:00:04]} Rc8 {[%emt 0:00:29]} 31. Nb5 {[%emt 0:00:54]} Rc1 {[%emt 0:00:27]} 32. Rxc1 {[%emt 0:00:02]} Bxc1 {[%emt 0:00:01]} 33. Nxa7 {[%emt 0:00:02]} d4 {[%emt 0:00:32]} 34. Nb5 {[%emt 0:00:03]} d3 {[%emt 0:00:02]} 35. Kf1 {[%emt 0:00:07]} Nc2 {[%emt 0:00:59]} 36. Nc3 {[%emt 0:00:19]} Kf5 {[%emt 0:00:51]} 37. h4 {[%emt 0:01:02]} Kg4 {[%emt 0:00:09]} 38. g3 {[%emt 0:00:02]} Kf3 {[%emt 0:00:13]} 39. h5 {[%emt 0:00:02]} Kg4 {[%emt 0:00:35]} 40. Kg2 {[%emt 0:01:29]} Nd4 {[%emt 0:00:39]} 41. Kf1 {[%emt 0:00:58]} Nf3 {[%emt 0:00:58]} 42. Kg2 {[%emt 0:00:11]} Ne5 {[%emt 0:00:34]} 43. Kf1 {[%emt 0:00:01]} Kxh5 {[%emt 0:00:18]} 44. Ke1 {[%emt 0:00:03]} Kg4 {[%emt 0:00:12]} 45. Kd1 {[%emt 0:00:05]} Bb2 {[%emt 0:00:06]} 46. Nd5 {[%emt 0:00:28]} b5 {[%emt 0:00:06]} 47. f4 {[%emt 0:00:36]} Nc4 {[%emt 0:00:14]} 48. Nb4 {[%emt 0:00:10]} d2 {[%emt 0:00:11]} 49. Kc2 {[%emt 0:00:02]} Bc1 {[%emt 0:00:07]} 50. Nd3 {[%emt 0:00:07]} Ne3+ {[%emt 0:00:01]} 51. Kc3 {[%emt 0:00:05]} Kxg3 {[%emt 0:00:07]} 52. Nb2 {[%emt 0:00:06]} Bxb2+ {[%emt 0:00:05]} 53. Kxd2 {[%emt 0:00:01]} Kxf4 {[%emt 0:00:01]} 0-1